Cogmind - Beta 11 X8 @@@ ROGUE MODE // 2021.10.25 @ 09:21:31 Player: arctifire Result: Self-destructed Performance ------------- Evolutions (3) 1500 Regions Visited (7) 1400 Robots Destroyed (42) 210 Value Destroyed (1397) 1397 Prototype IDs (26) 520 Alien Tech Used (0) 0 Bonus (-641) -641 TOTAL SCORE: 4386 Bonus ------- Aligned with FarCom 300 Friendly Fire -941 Cogmind --------- Core Integrity 643/700 Matter 256/300 Energy 160/160 System Corruption 0% Temperature Cool (0) Movement Treading (330) Ox2 Location -7/Waste Parts ------- > --- POWER (2) -------- Light Nuclear Core > --- PROPULSION (3) --- Armored Treads > --- UTILITY (4) ------ Improved Cooling System Large Storage Unit Modified TNC Medium Reflective Plating > --- WEAPON (4) ------- Gatling Laser Gatling Laser Improved Spread Laser Minigun > --- INVENTORY (15) --- Ion Engine Light Nuclear Core Light Nuclear Core Micro Fission Core Armored Treads Improved Airjet Improved Airjet Improved Heat Sink Improved Cooling System YI-UF0's Bottomless Matter Pit Cloak of Protection Hacking Suite Heavy Particle Gun Gatling Laser Guided Plasma Cannon Peak State ------------ > --- POWER ------------ Light Nuclear Core Light Nuclear Core > --- PROPULSION ------- Armored Treads Armored Treads Armored Treads > --- UTILITY ---------- Improved Cooling System Large Storage Unit Modified TNC Medium Reflective Plating > --- WEAPON ----------- Gatling Laser Gatling Laser Improved Spread Laser Minigun > --- INVENTORY -------- Ion Engine Light Nuclear Core Light Nuclear Core Armored Treads Improved Airjet Improved Airjet Improved Heat Sink Improved Cooling System YI-UF0's Bottomless Matter Pit Cloak of Protection Hacking Suite Heavy Particle Gun Gatling Laser Guided Plasma Cannon [Rating: 52] Favorites ----------- Power Ion Engine Engine Ion Engine Power Core Light Nuclear Core Propulsion Aluminum Leg Treads Armored Treads Leg Aluminum Leg Hover Unit Improved Airjet Utility Modified TNC Device Improved Cooling System Storage Medium Storage Unit Processor Modified TNC Protection Power Shielding Weapon Light EM Pulse Cannon Energy Gun Gatling Laser Energy Cannon Light EM Pulse Cannon Ballistic Gun Minigun Build | -11 -10 -10 -10 -9 -8 -7 -7 ------- Run | Scr Mat Min Exi Min Mat Fac Was Slots Evolved 6 | . . . . . 4 2 . Power 1 | . . . . . . 1 . Propulsion 1 | . . . . . 1 . . Utility 2 | . . . . . 1 1 . Weapon 2 | . . . . . 2 . . Parts Attached 39 | . 4 . 1 1 26 7 . Power 5 | . . . . . 3 2 . Engine 1 | . . . . . 1 . . Core 4 | . . . . . 2 2 . Reactor . | . . . . . . . . Propulsion 12 | . . . . . 11 1 . Treads 9 | . . . . . 8 1 . Leg 1 | . . . . . 1 . . Wheel . | . . . . . . . . Hover 2 | . . . . . 2 . . Flight . | . . . . . . . . Utility 10 | . 2 . 1 . 5 2 . Device 5 | . . . . . 4 1 . Storage 2 | . 1 . . . 1 . . Processor 1 | . . . 1 . . . . Hackware . | . . . . . . . . Protection 2 | . 1 . . . . 1 . Artifact . | . . . . . . . . Weapon 12 | . 2 . . 1 7 2 . Energy Gun 7 | . . . . . 5 2 . Energy Cannon 2 | . 2 . . . . . . Ballistic Gun 3 | . . . . 1 2 . . Ballistic Cannon . | . . . . . . . . Launcher . | . . . . . . . . Special Weapon . | . . . . . . . . Impact Weapon . | . . . . . . . . Slashing Weapon . | . . . . . . . . Piercing Weapon . | . . . . . . . . Special Melee Weapon . | . . . . . . . . Unidentified Prototypes 3 | . . . . . 2 1 . Parts Lost 6 | . . . . 1 3 1 1 Power . | . . . . . . . . Propulsion 2 | . . . . . 1 . 1 Utility . | . . . . . . . . Weapon 4 | . . . . 1 2 1 . Highest Loss Streak 2 | . . . . 1 2 1 1 Average Slot Usage (%) 96 | . 95 100 100 99 89 98 100 Engine 8 | . 14 14 14 14 3 . . Core 4 | . . . . . 5 15 15 Treads 9 | . . . . . 15 22 23 Leg 16 | . 28 28 28 28 7 . . Device 3 | . . . . . 7 8 7 Storage 11 | . 14 14 14 14 9 7 7 Processor 7 | . . . 5 14 9 7 7 Protection 4 | . 10 14 8 . . 5 7 Energy Gun 9 | . 11 . . . 14 22 23 Energy Cannon 12 | . 5 28 28 27 . . . Ballistic Gun 7 | . 11 . . . 16 7 7 Naked Turns . | . . . . . . . . Heaviest Build 54 | 13 24 24 24 23 40 54 54 Greatest Support 62 | 20 20 20 20 20 62 60 60 Greatest Overweight (x) 2 | . 1 1 1 1 2 . . Average Overweight (x) . | . . 1 1 . . . . Largest Inventory Capacity 15 | 8 10 10 10 10 15 15 15 Average Capacity 11 | 8 9 10 10 10 11 15 15 Most Carried 15 | 6 7 7 10 10 12 14 15 Average Carried 9 | 6 5 7 8 9 9 13 14 Final Capacity 15 | 8 10 10 10 10 15 15 15 Final Carried 15 | 6 7 7 10 9 12 14 15 Class Distribution -------------------- 51% | Mutant 23% | Skirmisher 11% | Scavenger-Skirmisher 9% | Scavenger-Tank Dominant Class ---------------- Mutant | -10/Materials Mutant | -10/Mines Mutant | -10/Exiles Mutant | -9/Mines Skirmisher | -8/Materials Scavenger-Tank | -7/Factory Scavenger-Tank | -7/Waste Resources | -11 -10 -10 -10 -9 -8 -7 -7 ----------- Run | Scr Mat Min Exi Min Mat Fac Was Matter Collected 851 | 200 46 . . 10 499 96 . Remotely . | . . . . . . . . Salvage Created 1501 | . 145 . . 214 881 261 . Parts 86 | . 13 . . 7 54 12 . Haulers Intercepted . | . . . . . . . . Recyclers Shooed 1 | . . . . . . 1 . Parts Field Recycled . | . . . . . . . . Retrieved Matter . | . . . . . . . . Parts Self-Destructed . | . . . . . . . . Prevented . | . . . . . . . . Kills | -11 -10 -10 -10 -9 -8 -7 -7 ------- Run | Scr Mat Min Exi Min Mat Fac Was Combat Hostiles Destroyed 33 | . 2 . . 5 19 7 . Guns 26 | . . . . . 19 7 . Cannons 4 | . 2 . . 2 . . . AOE 3 | . . . . 3 . . . Classes Destroyed 11 | . 3 . . 1 5 2 . Worker 4 | . 1 . . . 3 . . Builder 2 | . . . . . 1 1 . Tunneler 1 | . 1 . . . . . . Watcher 1 | . . . . . 1 . . Swarmer 9 | . . . . 3 3 3 . Grunt 14 | . 2 . . 2 8 2 . Sentry 3 | . . . . . 3 . . Specialist 3 | . . . . . 3 . . Hunter 1 | . . . . . . 1 . Programmer 1 | . . . . . . 1 . Heavy 2 | . . . . . 2 . . Best Kill Streak 6 | . 3 . . 3 6 3 . Combat Bots Only 5 | . 2 . . 3 5 3 . Max Kills in Single Turn 2 | . 1 . . 2 2 1 . Gunslinging . | . . . . . . . . Exploded 2 | . . . . 2 . . . Melee . | . . . . . . . . Uniques/NPCs Destroyed 1 | . . . . 1 . . . YI-UF0 (-9/Mines) Combat | -11 -10 -10 -10 -9 -8 -7 -7 -------- Run | Scr Mat Min Exi Min Mat Fac Was Damage Taken 1739 | . 79 . . 94 1166 354 46 Core 321 | . 20 . . 18 226 57 . Absorbed by Shields . | . . . . . . . . Core Remaining (%) 80 | 100 . . . 84 58 . . Volleys Fired 83 | . 11 . . 17 40 15 . Largest 4 | . 2 . . 2 4 4 . Hottest 260 | . 112 . . 112 260 260 . Shots Fired 241 | . 22 . . 30 142 47 . Gun 201 | . 12 . . . 142 47 . Cannon 40 | . 10 . . 30 . . . Launcher . | . . . . . . . . Special . | . . . . . . . . Kinetic 92 | . 6 . . . 71 15 . Thermal 103 | . . . . . 71 32 . Explosive . | . . . . . . . . Electromagnetic 46 | . 16 . . 30 . . . Robot Hit Streak 14 | . 6 . . 7 14 6 . Robot Miss Streak 8 | . 4 . . 3 8 6 . Penetration Max . | . . . . . . . . Secondary Targets 3 | . . . . . 1 2 . Max Gunslinging Chain 1 | . . . . . 1 1 . Shots Hit Robots 173 | . 13 . . 15 103 42 . Core Hits 94 | . 5 . . 6 58 25 . Critical Kills . | . . . . . . . . Critical Parts Destroyed . | . . . . . . . . Critical Strikes . | . . . . . . . . Melee Attacks . | . . . . . . . . Impact . | . . . . . . . . Slashing . | . . . . . . . . Piercing . | . . . . . . . . Sneak Attacks . | . . . . . . . . Combat Hostiles . | . . . . . . . . Follow-up Attacks . | . . . . . . . . Damage Inflicted 3374 | . 248 . . 561 1888 677 . Guns 2655 | . 90 . . . 1888 677 . Cannons 458 | . 158 . . 300 . . . Explosions 261 | . . . . 261 . . . Melee . | . . . . . . . . Ramming . | . . . . . . . . Kinetic 874 | . 48 . . . 611 215 . Thermal 2000 | . . . . 261 1277 462 . Explosive . | . . . . . . . . Electromagnetic 500 | . 200 . . 300 . . . Impact . | . . . . . . . . Slashing . | . . . . . . . . Piercing . | . . . . . . . . Highest Corruption . | . . . . . . . . Average Corruption . | . . . . . . . . Corruption Purged . | . . . . . . . . Overload Shots . | . . . . . . . . Overflow Damage 33 | . . . . 33 . . . Projectiles . | . . . . . . . . Explosions 33 | . . . . 33 . . . Melee . | . . . . . . . . Knockbacks . | . . . . . . . . Impact . | . . . . . . . . Kinetic . | . . . . . . . . Secondary . | . . . . . . . . Self-Inflicted Damage 11 | . . . . 11 . . . Shots 1 | . . . . 1 . . . Rammed . | . . . . . . . . Targets Rammed . | . . . . . . . . Kicked . | . . . . . . . . Crushed . | . . . . . . . . Highest Temperature 353 | . 243 . . 214 353 339 . Average Temperature 106 | . 77 . . 105 116 105 . Received Heat Transfer 525 | . 48 . . 36 333 108 . Effects 2 | . 2 . . . . . . Interference 2 | . 2 . . . . . . Siege Activations . | . . . . . . . . Robots Corrupted 1 | . . . . 1 . . . Combat Hostiles . | . . . . . . . . Parts Fried 2 | . . . . 2 . . . Impact Corruptions . | . . . . . . . . Robots Melted . | . . . . . . . . Combat Hostiles . | . . . . . . . . Parts Melted 6 | . . . . . 4 2 . Heat Transferred 4091 | . . . . 400 2846 845 . Parts Sabotaged . | . . . . . . . . Parts Stolen . | . . . . . . . . Parts Stripped . | . . . . . . . . Power Chain Reactions 2 | . . . . 2 . . . Missiles Intercepted . | . . . . . . . . Alert | -11 -10 -10 -10 -9 -8 -7 -7 ------- Run | Scr Mat Min Exi Min Mat Fac Was Peak Influence 274 | . 75 28 . 85 240 274 26 Initial 109 | . . 28 . . 33 109 26 Average 90 | . 11 28 . 64 111 154 25 Maximum Alert Level 1 | . . . . . 1 1 . Low Security (%) 88 | 100 100 100 . 100 85 67 100 Level 1 11 | . . . . . 14 32 . Level 2 . | . . . . . . . . Level 3 . | . . . . . . . . Level 4 . | . . . . . . . . Level 5 . | . . . . . . . . High Security . | . . . . . . . . Max Security . | . . . . . . . . Squads Dispatched 6 | . 1 . . . 5 . . Investigation 1 | . . . . . 1 . . Extermination . | . . . . . . . . Reinforcement 5 | . 1 . . . 4 . . Assault . | . . . . . . . . Garrison . | . . . . . . . . Intercept . | . . . . . . . . Construction Impeded . | . . . . . . . . Haulers Reinforced . | . . . . . . . . Active Scanning Responses . | . . . . . . . . Cargo Convoy Interrupts . | . . . . . . . . Stealth | -11 -10 -10 -10 -9 -8 -7 -7 --------- Run | Scr Mat Min Exi Min Mat Fac Was Distress Signals 2 | . 1 . . . 1 . . Communications Jammed . | . . . . . . . . Distress Signals . | . . . . . . . . Times Spotted 48 | . 4 . . 3 30 7 4 Peak Tracking Total 5 | . 3 . . 2 5 3 4 Tactical Retreats 2 | . . . . . 2 . . Traps | -11 -10 -10 -10 -9 -8 -7 -7 ------- Run | Scr Mat Min Exi Min Mat Fac Was Traps Triggered 2 | . . . . . 1 1 . Indirectly . | . . . . . . . . Trap Hack Attempts . | . . . . . . . . Triggered . | . . . . . . . . Disarmed . | . . . . . . . . Reprogrammed . | . . . . . . . . Reused . | . . . . . . . . Traps Extracted . | . . . . . . . . Installed . | . . . . . . . . Triggered . | . . . . . . . . Exploded 1 | . . . 1 . . . . Machines | -11 -10 -10 -10 -9 -8 -7 -7 ---------- Run | Scr Mat Min Exi Min Mat Fac Was Machines Disabled 3 | . . . . 3 . . . Max in Single Turn 3 | . . . . 3 . . . Machines Sabotaged . | . . . . . . . . Garrisons Compromised . | . . . . . . . . Overloaded Fab Kills . | . . . . . . . . Hacking | -11 -10 -10 -10 -9 -8 -7 -7 --------- Run | Scr Mat Min Exi Min Mat Fac Was Machines Accessed 6 | . . . 4 . 1 1 . Terminals 1 | . . . . . 1 . . Fabricators . | . . . . . . . . Repair Stations 1 | . . . . . . 1 . Recycling Units . | . . . . . . . . Scanalyzers . | . . . . . . . . Garrison Access . | . . . . . . . . Total Hacks 22 | . . . 18 . 1 3 . Successful 21 | . . . 18 . 1 2 . Failed 1 | . . . . . . 1 . Catastrophic . | . . . . . . . . Database Lockouts . | . . . . . . . . Manual 2 | . . . 1 . 1 . . Terminals 1 | . . . . . 1 . . Fabricators . | . . . . . . . . Repair Stations 3 | . . . . . . 3 . Recycling Units . | . . . . . . . . Scanalyzers . | . . . . . . . . Garrison Access . | . . . . . . . . Terminal Hacks 18 | . . . 18 . . . . Record 17 | . . . 17 . . . . EX-Prototype ID Bank 1 | . . . 1 . . . . Fabricator Hacks . | . . . . . . . . Repair Station Hacks 2 | . . . . . . 2 . Scan Component 1 | . . . . . . 1 . Repair 1 | . . . . . . 1 . Recycling Unit Hacks . | . . . . . . . . Scanalyzer . | . . . . . . . . Garrison Access Hacks . | . . . . . . . . Unauthorized Hacks 1 | . . . . . 1 . . Terminals 1 | . . . . . 1 . . Botnet 1 | . . . . . 1 . . Fabricators . | . . . . . . . . Repair Stations . | . . . . . . . . Recycling Units . | . . . . . . . . Scanalyzers . | . . . . . . . . Garrison Access . | . . . . . . . . Data Cores Recovered . | . . . . . . . . Used . | . . . . . . . . Hacking Detections . | . . . . . . . . Full Trace Events . | . . . . . . . . Feedback Events . | . . . . . . . . Feedback Blocked . | . . . . . . . . Robot Schematics Acquired . | . . . . . . . . Robots Built . | . . . . . . . . Authchips . | . . . . . . . . Time . | . . . . . . . . Total Robot Build Rating . | . . . . . . . . Part Schematics Acquired . | . . . . . . . . Parts Built . | . . . . . . . . Authchips . | . . . . . . . . Time . | . . . . . . . . Total Part Build Rating . | . . . . . . . . Parts Repaired 1 | . . . . . . 1 . Time 38 | . . . . . . 38 . Parts Recycled . | . . . . . . . . Recycled Matter . | . . . . . . . . Retrieved Matter . | . . . . . . . . Retrieved Components . | . . . . . . . . Parts Scanalyzed . | . . . . . . . . Part Schematics Acquired . | . . . . . . . . Parts Damaged . | . . . . . . . . Bothacking | -11 -10 -10 -10 -9 -8 -7 -7 ------------ Run | Scr Mat Min Exi Min Mat Fac Was Used RIF Installer . | . . . . . . . . Robots Hacked . | . . . . . . . . Non-combat . | . . . . . . . . Combat . | . . . . . . . . Robot Hacks Applied . | . . . . . . . . Relay Couplers Released . | . . . . . . . . Robots Rewired . | . . . . . . . . Allies Hacked . | . . . . . . . . Hacks Repelled . | . . . . . . . . Allies | -11 -10 -10 -10 -9 -8 -7 -7 -------- Run | Scr Mat Min Exi Min Mat Fac Was Total Allies . | . . . . . . . . Largest Group . | . . . . . . . . Highest-Rated Group . | . . . . . . . . Highest-Rated Ally . | . . . . . . . . Total Orders . | . . . . . . . . Ally Attacks . | . . . . . . . . Total Damage . | . . . . . . . . Kills . | . . . . . . . . Allies Corrupted . | . . . . . . . . Allies Melted . | . . . . . . . . Intel | -11 -10 -10 -10 -9 -8 -7 -7 ------- Run | Scr Mat Min Exi Min Mat Fac Was Robot Analysis Total . | . . . . . . . . Derelict Logs Recovered 1 | . . . . 1 . . . Drone Launches . | . . . . . . . . Drone Recoveries . | . . . . . . . . Exploration | -11 -10 -10 -10 -9 -8 -7 -7 ------------- Run | Scr Mat Min Exi Min Mat Fac Was Turns Passed 3522 | 2 252 320 637 553 1192 519 47 Spaces Moved 1626 | 2 165 169 334 187 495 247 27 Core . | . . . . . . . . Treads 613 | . . . . . 339 247 27 Legs 1011 | 2 165 169 334 187 154 . . Wheels . | . . . . . . . . Hover 2 | . . . . . 2 . . Flight . | . . . . . . . . Fastest Speed 120 | 120 120 190 190 120 120 170 170 Average Speed 175 | 120 125 190 190 185 177 170 170 Slowest Speed 260 | 120 190 190 190 190 260 170 170 Overloaded Moves . | . . . . . . . . Propulsion Burnouts . | . . . . . . . . Robots Hopped . | . . . . . . . . Cave-ins Triggered . | . . . . . . . . Exploration Rate (%) 26 | 1 27 29 63 20 33 8 32 Regions Visited 7 Branch Regions 3 Pre-discovered Areas 2 | . . . . 2 . . . Known Exits Taken . | . . . . . . . . Unknown Exits Taken 6 | 1 1 1 1 1 1 . . Scrap Searched 1 | . . 1 . . . . . Spaces Dug . | . . . . . . . . Terrain Destroyed 20 | . . . . 20 . . . Melee . | . . . . . . . . Projectile . | . . . . . . . . AOE 20 | . . . . 20 . . . Terrain Rammed . | . . . . . . . . Walls Destroyed . | . . . . . . . . Machines Disabled . | . . . . . . . . Actions | -11 -10 -10 -10 -9 -8 -7 -7 --------- Run | Scr Mat Min Exi Min Mat Fac Was Total 2104 | 1 190 168 337 364 705 311 28 Wait 321 | . 3 . . 158 121 39 . Move 1620 | 1 164 168 333 186 494 247 27 Hop . | . . . . . . . . Pick Up 11 | . 2 . 2 1 5 . 1 Fast Attach 24 | . 3 . 1 . 15 5 . Attach 5 | . . . . 1 3 1 . Detach 8 | . 2 . 1 . 4 1 . Swap 11 | . 1 . . . 8 2 . Drop 21 | . 4 . . 1 15 1 . Fire 83 | . 11 . . 17 40 15 . Melee . | . . . . . . . . Ram . | . . . . . . . . Kick . | . . . . . . . . Crush . | . . . . . . . . Escape Stasis . | . . . . . . . . Rewire . | . . . . . . . . Trap . | . . . . . . . . Miscellaneous . | . . . . . . . . Route ------- -11/Scrapyard -10/Materials -10/Mines (discovered 2 exits: [*Mat] / *Exi) -10/Exiles -9/Mines -8/Materials (discovered 2 exits: *Fac / [*Sto]) -7/Factory -7/Waste History --------- Turn | Location | Event 1 | -11/Scrapyard | Discovered new exit (range 1) 3 | -11/Scrapyard | Entered Materials 195 | -10/Materials | Discovered new exit (range 13) 255 | -10/Materials | Entered Mines 302 | -10/Mines | Met a Derelict bent on vengeance 307 | -10/Mines | Build established: Mutant 499 | -10/Mines | Discovered new exit (range 8) 561 | -10/Mines | Deemed a non-threat by the Exiles lab entrance 563 | -10/Mines | Discovered new exit (range 5) 575 | -10/Mines | Entered Exiles 625 | -10/Exiles | Met 8R-AWN 665 | -10/Exiles | Met EX-HEX 746 | -10/Exiles | Met EX-BIN 779 | -10/Exiles | Aligned with FarCom system 781 | -10/Exiles | Given EX-Vault access code 944 | -10/Exiles | Opened EX-Vault 958 | -10/Exiles | Found Modified TNC 965 | -10/Exiles | Found Gui. Plasma Cannon 972 | -10/Exiles | Found Cloak of Protection 1009 | -10/Exiles | Warned to stay clear of 0b10 Research branches 1025 | -10/Exiles | Exiles lab attacked by MAIN.C 1176 | -10/Exiles | Discovered new exit (range 14) 1212 | -10/Exiles | Stole three prototypes: Modified TNC, Cloak of Protection, Gui. Plasma Cannon 1212 | -10/Exiles | Entered Mines 1261 | -9/Mines | Learned location of Zion (-7) 1277 | -9/Mines | YI-UF0 nonchalantly dropped a Grenade Launcher on the ground 1360 | -9/Mines | Destroyed YI-UF0 1370 | -9/Mines | Found Corrupted Prototype Storage 1416 | -9/Mines | Learned location of Storage (-8) 1489 | -9/Mines | Found a hidden stash of uninstalled traps 1542 | -9/Mines | Discovered new exit (range 9) 1765 | -9/Mines | Entered Materials 1765 | -8/Materials | Evolved 4 slots: Propulsion x1, Utility x1, Weapon x2 2121 | -8/Materials | Build established: Skirmisher 2685 | -8/Materials | Discovered new exit (range 15) 2838 | -8/Materials | Discovered new exit (range 16) 2957 | -8/Materials | Entered Factory 2957 | -7/Factory | Evolved 2 slots: Power x1, Utility x1 2959 | -7/Factory | FarCom data flow suspended 3432 | -7/Factory | Repaired Arm. Treads 3476 | -7/Factory | Sucked down chute 3476 | -7/Factory | Entered Waste 3514 | -7/Waste | Spotted C-40 Crusher 3518 | -7/Waste | Spotted C-40 Crusher 3522 | -7/Waste | Spotted C-40 Crusher 3522 | -7/Waste | Crushed by Compactor (1 part destroyed, 2 dropped) 3523 | -7/Waste | Self-destructed Last Messages --------------- 03394_ Current location identified: Factory >>Scan(Arm. Treads) Scanning Arm. Treads... Ready to Repair: Arm. Treads Rating: 3 Time: 38 >>Repair Repairing Arm. Treads... ETC: 38 03432_ Repair station completes Arm. Treads repairs. 03432_ Acquired Arm. Treads. 03476_ Triggered Chute Trap. 03476_ A hatch slides open and sucks a vortex of air into the floor. LOCATION=UNKNOWN GOAL=ESCAPE 03517_ Acquired Mic. Fission Core. 03522_ Arm. Treads crushed. 03522_ Lgt. Nuclear Core crushed. 03522_ Critical hit (Destroy). Map ----- +----------------------------------------------------+ | ?????????????????????????????????????????????????? | | ?????????????????????????????????????????????????? | | ?????????????????????????????????????????????????? | | ?????????????????????????????????????????????????? | | ?????????????????????????????????????????????????? | | ?????????????????????????????????????????????????? | | ?????????????????????????????????????????????????? | | ?????????????????????????????????????????????????? | | ?????????????????????????????????????????????????? | | ?????????????????????????????????????????????????? | | ?????????????????????????????????????????????????? | | ?????????????????????????????????????????????????? | | ???????????????? ?????????????????????????????? | | ???????????????# ?????????????????????????????? | | ???????????????# ?????????????????????????????? | | ?????????????### #????????????????????????????? | | ?????????????# ????????????????????????????? | | ?????????????# ????????????????????????????? | | ?????????????? ????????????????????????????? | | ??????????????? ????????????????????????????? | | ???????????????# ! #????????????????????????????? | | ???????????????# #????????????????????????????? | | ???????????????# #????????????????????????????? | | ???????????????# #????????? #????????????????? | | ?????????????### ######## #????????????????? | | ?????????????# @ #????????????????? | | ?????????????# CCCC #????????????????? | | ?????????????# CCCC #????????????????? | | ?????????????# ! #????????????????? | | ?????????????### ######## #????????????????? | | ?############??# #???????CC #????????????????? | | ?# #??# #????????C #????????????????? | | ?# #??# #???????? #????????????????? | | ?# #### ######## #????????????????? | | ?# ! ???????????????? | | ?# C???????????????? | | ?# ??????????????? | | ?# ??????????????? | | ?# ! ! #### ######## #????????????????? | | ?# #??# #????????? #????????????????? | | ?# #??# #????????????????????????????? | | ?############??# ] #????????????????????????????? | | ???????????????# #????????????????????????????? | | ???????????????######????????????????????????????? | | ?????????????????????????????????????????????????? | | ?????????????????????????????????????????????????? | | ?????????????????????????????????????????????????? | | ?????????????????????????????????????????????????? | | ?????????????????????????????????????????????????? | | ?????????????????????????????????????????????????? | +----------------------------------------------------+ Best States ------------- Heat Dissipation 75 Energy Generation 23 Energy Capacity 290 Matter Stores 300 Matter Capacity 300 Sight Range 16 Terrain Scan Density 10 Armor Coverage 225 Resistance: TH 15 Power Shielding 33 Evasion (%) 55 Recoil Reduction 3 Item Schematics ----------------- None Robot Schematics ------------------ None Fabricated ------------ Nothing Alien Tech Used ----------------- None Achievements -------------- None Challenges ------------ None Game ------ Seed KineticBehemothNanosword Manual? 0 Play Time 00:22:11 Cumulative 38.6 hours Start 2021.10.25 @ 08:57:28 End 2021.10.25 @ 09:21:31 Sessions 1 Manual Loads 0 Difficulty Rogue Special Mode None Game No. 53 Rogue 22 Adventurer 25 Explorer 6 Win Type - Total 0 Types 0/0/0/0/0/0/0/0/0 Lore% 22 Gallery% 45 Achievement% 56 Wizard Run 0 Options --------- ASCII 0 Keyboard 0 Movement Arrows Keybinds 0 Fullscreen 1 Font 18/SmallcapsGlow Map View 76x50 Tactical HUD 1 Map Filters NONE Filters NONE Steam 1 RUN: f4f557ee-a374-43ab-91ce-709016b6f1ab